[Event "*** SCC Grand Prix: Titled Tuesday Blitz"]
[Site "Chess.com"]
[Date "2020.08.04"]
[Round "6"]
[White "IMHansNiemann"]
[Black "Micki-taryan"]
[Result "1-0"]
[WhiteElo "2913"]
[BlackElo "3054"]
[TimeControl "180+1"]
[EndTime "14:51:30 PDT"]
[Termination "IMHansNiemann won by checkmate"]

1. d4 {[%clk 0:03:00.9]} 1... Nf6 {[%clk 0:02:59.9]} 2. Nc3 {[%clk 0:03:01.1]}
2... d5 {[%clk 0:02:59.6]} 3. Bf4 {[%clk 0:03:00.3]} 3... g6 {[%clk 0:02:58.5]}
4. e3 {[%clk 0:03:00.2]} 4... Bg7 {[%clk 0:02:58.8]} 5. h4 {[%clk 0:03:00.6]}
5... h6 {[%clk 0:02:57.8]} 6. Nf3 {[%clk 0:02:59.8]} 6... Bg4 {[%clk 0:02:57.8]}
7. Be2 {[%clk 0:02:59.5]} 7... Bxf3 {[%clk 0:02:58.4]} 8. Bxf3 {[%clk
0:03:00.3]} 8... c6 {[%clk 0:02:59]} 9. g4 {[%clk 0:02:57.5]} 9... Nbd7 {[%clk
0:02:55.3]} 10. Qd3 {[%clk 0:02:54.8]} 10... e6 {[%clk 0:02:48.9]} 11. h5 {[%clk
0:02:28.6]} 11... g5 {[%clk 0:02:46.8]} 12. Bd6 {[%clk 0:02:24.5]} 12... Nb6
{[%clk 0:02:45.6]} 13. Bg3 {[%clk 0:02:23]} 13... Nfd7 {[%clk 0:02:40.9]} 14. e4
{[%clk 0:02:21.5]} 14... O-O {[%clk 0:02:23]} 15. O-O-O {[%clk 0:02:11.1]} 15...
Nc4 {[%clk 0:02:23.1]} 16. b3 {[%clk 0:02:09.8]} 16... Na3 {[%clk 0:01:42.4]}
17. Bd6 {[%clk 0:02:03.5]} 17... Qa5 {[%clk 0:01:40.4]} 18. Bxf8 {[%clk
0:02:01.8]} 18... Rxf8 {[%clk 0:01:40.1]} 19. Ne2 {[%clk 0:02:01.5]} 19... Nb5
{[%clk 0:01:38.7]} 20. a4 {[%clk 0:02:00.6]} 20... Nc7 {[%clk 0:01:37.6]} 21.
exd5 {[%clk 0:01:51.6]} 21... cxd5 {[%clk 0:01:33.8]} 22. Qc3 {[%clk 0:01:43]}
22... Qb6 {[%clk 0:01:31.6]} 23. Kb1 {[%clk 0:01:40.4]} 23... Qd6 {[%clk
0:01:29.1]} 24. Qd3 {[%clk 0:01:37.7]} 24... Rb8 {[%clk 0:01:27.7]} 25. Nc3
{[%clk 0:01:37]} 25... a6 {[%clk 0:01:28.1]} 26. Kb2 {[%clk 0:01:29.3]} 26... e5
{[%clk 0:01:23.6]} 27. Qf5 {[%clk 0:01:15.8]} 27... Ne6 {[%clk 0:01:01.8]} 28.
dxe5 {[%clk 0:01:10.8]} 28... Nxe5 {[%clk 0:01:02.7]} 29. Bxd5 {[%clk
0:01:05.2]} 29... Qb4 {[%clk 0:00:50.4]} 30. Bxe6 {[%clk 0:00:39.6]} 30... fxe6
{[%clk 0:00:51.3]} 31. Qxe6+ {[%clk 0:00:38.9]} 31... Kh8 {[%clk 0:00:51.9]} 32.
Rh3 {[%clk 0:00:34.2]} 32... b5 {[%clk 0:00:52.2]} 33. Ka2 {[%clk 0:00:27.4]}
33... Qf8 {[%clk 0:00:42.7]} 34. Re3 {[%clk 0:00:20.6]} 34... Qxf2 {[%clk
0:00:35.6]} 35. Re2 {[%clk 0:00:18.7]} 35... Qc5 {[%clk 0:00:35.5]} 36. Qd6
{[%clk 0:00:17.6]} 36... Qxd6 {[%clk 0:00:27]} 37. Rxd6 {[%clk 0:00:18]} 37...
Nxg4 {[%clk 0:00:27.9]} 38. Nd5 {[%clk 0:00:17.6]} 38... bxa4 {[%clk 0:00:28]}
39. bxa4 {[%clk 0:00:16.9]} 39... Ne5 {[%clk 0:00:27.7]} 40. Rb6 {[%clk
0:00:16.3]} 40... Rd8 {[%clk 0:00:27.6]} 41. Ne7 {[%clk 0:00:15.8]} 41... Nc4
{[%clk 0:00:28.2]} 42. Ng6+ {[%clk 0:00:13.9]} 42... Kh7 {[%clk 0:00:28.6]} 43.
Rb7 {[%clk 0:00:14.3]} 43... Rd1 {[%clk 0:00:28]} 44. c3 {[%clk 0:00:13.3]}
44... Na5 {[%clk 0:00:18.7]} 45. Rc7 {[%clk 0:00:12.1]} 45... Rd8 {[%clk
0:00:07.7]} 46. Ree7 {[%clk 0:00:11.7]} 46... Rg8 {[%clk 0:00:08.6]} 47. Rc5
{[%clk 0:00:11]} 47... g4 {[%clk 0:00:09.1]} 48. Rxa5 {[%clk 0:00:10.6]} 48...
g3 {[%clk 0:00:10]} 49. Nf4 {[%clk 0:00:11]} 49... Rf8 {[%clk 0:00:08]} 50. Ne6
{[%clk 0:00:08]} 50... Rg8 {[%clk 0:00:05.2]} 51. Rd5 {[%clk 0:00:07.6]} 51...
Kh8 {[%clk 0:00:05.7]} 52. Rxg7 {[%clk 0:00:06.8]} 52... g2 {[%clk 0:00:05]} 53.
Rxg8+ {[%clk 0:00:06.7]} 53... Kxg8 {[%clk 0:00:05.9]} 54. Rd1 {[%clk
0:00:07.1]} 54... a5 {[%clk 0:00:06.8]} 55. Rg1 {[%clk 0:00:07.8]} 55... Kh7
{[%clk 0:00:07.7]} 56. Rxg2 {[%clk 0:00:07.9]} 56... Kh8 {[%clk 0:00:08.6]} 57.
c4 {[%clk 0:00:07.8]} 57... Kh7 {[%clk 0:00:09.5]} 58. c5 {[%clk 0:00:08.5]}
58... Kh8 {[%clk 0:00:10.2]} 59. c6 {[%clk 0:00:09.2]} 59... Kh7 {[%clk
0:00:11.1]} 60. c7 {[%clk 0:00:09.8]} 60... Kh8 {[%clk 0:00:12]} 61. c8=Q+
{[%clk 0:00:10.4]} 61... Kh7 {[%clk 0:00:12.9]} 62. Qg8# {[%clk 0:00:10.8]} 1-0

[Event "*** SCC Grand Prix: Titled Tuesday Blitz"]
[Site "Chess.com"]
[Date "2020.08.04"]
[Round "6"]
[White "Baronessa08"]
[Black "DaggiGretarsson"]
[Result "0-1"]
[WhiteElo "2393"]
[BlackElo "2620"]
[TimeControl "180+1"]
[EndTime "14:51:30 PDT"]
[Termination "DaggiGretarsson won on time"]

1. c4 {[%clk 0:03:00.9]} 1... g6 {[%clk 0:02:59.3]} 2. Nc3 {[%clk 0:03:00.2]}
2... Bg7 {[%clk 0:02:59.5]} 3. g3 {[%clk 0:03:00.2]} 3... e6 {[%clk 0:02:59.3]}
4. Bg2 {[%clk 0:02:59.3]} 4... Ne7 {[%clk 0:02:59.4]} 5. d4 {[%clk 0:02:55]}
5... d5 {[%clk 0:02:58.5]} 6. cxd5 {[%clk 0:02:54.5]} 6... exd5 {[%clk
0:02:58.2]} 7. Nf3 {[%clk 0:02:54.4]} 7... O-O {[%clk 0:02:57.7]} 8. O-O {[%clk
0:02:54.9]} 8... c6 {[%clk 0:02:57.4]} 9. Bf4 {[%clk 0:02:52.8]} 9... Re8 {[%clk
0:02:56.6]} 10. Be5 {[%clk 0:02:44.7]} 10... Nd7 {[%clk 0:02:50.8]} 11. Bxg7
{[%clk 0:02:43.6]} 11... Kxg7 {[%clk 0:02:51.1]} 12. b4 {[%clk 0:02:44.1]} 12...
a6 {[%clk 0:02:13.3]} 13. a4 {[%clk 0:02:42.8]} 13... Nb6 {[%clk 0:02:12.1]} 14.
Ne5 {[%clk 0:02:36]} 14... f6 {[%clk 0:02:07.4]} 15. Nd3 {[%clk 0:02:35]} 15...
Nf5 {[%clk 0:02:05.1]} 16. e3 {[%clk 0:02:27.1]} 16... Nd6 {[%clk 0:01:57.9]}
17. b5 {[%clk 0:02:03.4]} 17... axb5 {[%clk 0:01:38.4]} 18. axb5 {[%clk
0:02:02.4]} 18... Rxa1 {[%clk 0:01:38.1]} 19. Qxa1 {[%clk 0:02:02.1]} 19... Nxb5
{[%clk 0:01:35]} 20. Nxb5 {[%clk 0:02:01.8]} 20... cxb5 {[%clk 0:01:35.2]} 21.
Qa5 {[%clk 0:01:32.2]} 21... Bd7 {[%clk 0:01:32.7]} 22. Nc5 {[%clk 0:01:29.2]}
22... Bc6 {[%clk 0:01:29]} 23. Rb1 {[%clk 0:01:11.3]} 23... Kf7 {[%clk
0:01:27.9]} 24. Bh3 {[%clk 0:00:47.9]} 24... Nc4 {[%clk 0:01:06.2]} 25. Qc3
{[%clk 0:00:41.2]} 25... Qd6 {[%clk 0:01:03.4]} 26. Ra1 {[%clk 0:00:37.5]} 26...
b6 {[%clk 0:00:52]} 27. Nd3 {[%clk 0:00:37.5]} 27... Ra8 {[%clk 0:00:51.2]} 28.
Rxa8 {[%clk 0:00:21.1]} 28... Bxa8 {[%clk 0:00:50.4]} 29. Nb4 {[%clk 0:00:22]}
29... Qe7 {[%clk 0:00:38.4]} 30. Bg2 {[%clk 0:00:20.8]} 30... Ke6 {[%clk
0:00:38.1]} 31. h4 {[%clk 0:00:20.3]} 31... Qa7 {[%clk 0:00:36.2]} 32. e4 {[%clk
0:00:17.4]} 32... dxe4 {[%clk 0:00:30.3]} 33. d5+ {[%clk 0:00:17.6]} 33... Ke7
{[%clk 0:00:22.1]} 34. Nc6+ {[%clk 0:00:11.2]} 34... Bxc6 {[%clk 0:00:20.9]} 35.
dxc6 {[%clk 0:00:12.1]} 35... Qa3 {[%clk 0:00:20.2]} 36. Qd4 {[%clk 0:00:07.9]}
36... Qc1+ {[%clk 0:00:19.3]} 37. Kh2 {[%clk 0:00:07.5]} 37... Ne5 {[%clk
0:00:19.4]} 38. Qxe4 {[%clk 0:00:05.2]} 38... Kd6 {[%clk 0:00:17]} 39. c7 {[%clk
0:00:04.8]} 39... Qxc7 {[%clk 0:00:16.1]} 40. Qd5+ {[%clk 0:00:05.2]} 40... Ke7
{[%clk 0:00:16.1]} 41. Bh3 {[%clk 0:00:05.5]} 41... Qd6 {[%clk 0:00:12.6]} 42.
Qb7+ {[%clk 0:00:05.3]} 42... Nd7 {[%clk 0:00:12.4]} 43. h5 {[%clk 0:00:04.1]}
43... b4 {[%clk 0:00:11.8]} 44. h6 {[%clk 0:00:03.9]} 44... b3 {[%clk
0:00:11.4]} 45. Qe4+ {[%clk 0:00:02.6]} 45... Kf8 {[%clk 0:00:05.6]} 46. Bxd7
{[%clk 0:00:02.1]} 46... Qxd7 {[%clk 0:00:05.7]} 47. Qb4+ {[%clk 0:00:03]} 47...
Kf7 {[%clk 0:00:04.5]} 48. Qxb3+ {[%clk 0:00:03.4]} 48... Qe6 {[%clk 0:00:04.9]}
49. Qb5 {[%clk 0:00:02.4]} 49... g5 {[%clk 0:00:04.8]} 50. Kg1 {[%clk
0:00:01.9]} 50... Kg6 {[%clk 0:00:05.1]} 0-1

[Event "*** SCC Grand Prix: Titled Tuesday Blitz"]
[Site "Chess.com"]
[Date "2020.08.04"]
[Round "6"]
[White "elohunter1999"]
[Black "ChadBiryani"]
[Result "1-0"]
[WhiteElo "2471"]
[BlackElo "2337"]
[TimeControl "180+1"]
[EndTime "14:51:30 PDT"]
[Termination "elohunter1999 won by resignation"]

1. e4 {[%clk 0:03:00.9]} 1... d5 {[%clk 0:02:58.8]} 2. exd5 {[%clk 0:03:00.8]}
2... Qxd5 {[%clk 0:02:59.7]} 3. Nc3 {[%clk 0:03:00.7]} 3... Qe6+ {[%clk
0:02:59.4]} 4. Be2 {[%clk 0:02:59.1]} 4... Qg6 {[%clk 0:02:59.6]} 5. Nf3 {[%clk
0:02:14.4]} 5... Qxg2 {[%clk 0:02:58.7]} 6. Rg1 {[%clk 0:02:14]} 6... Qh3 {[%clk
0:02:58.8]} 7. d4 {[%clk 0:02:12.9]} 7... c6 {[%clk 0:02:56.3]} 8. Bf4 {[%clk
0:02:09]} 8... Nf6 {[%clk 0:02:53.7]} 9. Qd2 {[%clk 0:02:08.8]} 9... Qd7 {[%clk
0:02:52.4]} 10. O-O-O {[%clk 0:02:03.6]} 10... g6 {[%clk 0:02:47.9]} 11. Ne5
{[%clk 0:01:57]} 11... Qd8 {[%clk 0:02:47.8]} 12. Qe3 {[%clk 0:01:50]} 12... Bg7
{[%clk 0:02:44.8]} 13. Bh6 {[%clk 0:01:29.8]} 13... Bxh6 {[%clk 0:02:29.3]} 14.
Qxh6 {[%clk 0:01:30.7]} 14... Be6 {[%clk 0:02:29.6]} 15. d5 {[%clk 0:01:19]}
15... cxd5 {[%clk 0:02:28]} 16. Bb5+ {[%clk 0:01:18.5]} 16... Nbd7 {[%clk
0:02:25.9]} 17. Nxd5 {[%clk 0:01:18]} 17... Bxd5 {[%clk 0:02:18.9]} 18. Rxd5
{[%clk 0:01:16.2]} 18... Nxd5 {[%clk 0:02:03.9]} 19. Qg7 {[%clk 0:00:50.8]}
19... Rf8 {[%clk 0:01:59.5]} 20. Nxd7 {[%clk 0:00:48.6]} 20... Qxd7 {[%clk
0:01:55.5]} 21. Bxd7+ {[%clk 0:00:48.1]} 21... Kxd7 {[%clk 0:01:56.4]} 22. Rd1
{[%clk 0:00:48]} 22... Kc6 {[%clk 0:01:55]} 23. Qe5 {[%clk 0:00:45.8]} 23...
Rad8 {[%clk 0:01:46.7]} 24. c4 {[%clk 0:00:43.1]} 24... Nb6 {[%clk 0:01:27.8]}
25. Qb5+ {[%clk 0:00:29.9]} 25... Kc7 {[%clk 0:01:24.9]} 26. Qc5+ {[%clk
0:00:30.5]} 26... Kb8 {[%clk 0:01:24.7]} 27. Rxd8+ {[%clk 0:00:31.2]} 27... Rxd8
{[%clk 0:01:25]} 28. Qxe7 {[%clk 0:00:32.1]} 28... Rd7 {[%clk 0:01:25.3]} 29.
Qe8+ {[%clk 0:00:29.7]} 29... Kc7 {[%clk 0:01:25.6]} 30. b3 {[%clk 0:00:29.9]}
30... h5 {[%clk 0:01:24.3]} 31. Qe5+ {[%clk 0:00:27.4]} 31... Kc8 {[%clk
0:01:22.1]} 32. f4 {[%clk 0:00:27.7]} 32... a6 {[%clk 0:01:16.5]} 33. f5 {[%clk
0:00:28]} 33... Kd8 {[%clk 0:01:10.3]} 34. fxg6 {[%clk 0:00:26.2]} 34... fxg6
{[%clk 0:01:10.2]} 35. Qf6+ {[%clk 0:00:26.2]} 35... Kc7 {[%clk 0:01:10.9]} 36.
Qxg6 {[%clk 0:00:26.2]} 36... h4 {[%clk 0:01:08.9]} 37. Qg4 {[%clk 0:00:24.2]}
37... Rh7 {[%clk 0:01:07.2]} 38. Qf4+ {[%clk 0:00:23.9]} 38... Kd8 {[%clk
0:01:03.2]} 39. Qf6+ {[%clk 0:00:20.8]} 39... Kc7 {[%clk 0:01:03.4]} 40. Qe5+
{[%clk 0:00:20.8]} 40... Kd8 {[%clk 0:01:02.3]} 41. Qd6+ {[%clk 0:00:18.6]}
41... Nd7 {[%clk 0:01:01.7]} 42. c5 {[%clk 0:00:19.1]} 42... Rh5 {[%clk
0:00:55]} 43. b4 {[%clk 0:00:19]} 43... Rf5 {[%clk 0:00:51.9]} 44. Kb2 {[%clk
0:00:18.3]} 44... Rf2+ {[%clk 0:00:47.2]} 45. Kb3 {[%clk 0:00:18.6]} 45... Rf3+
{[%clk 0:00:39.2]} 46. Kc4 {[%clk 0:00:18.5]} 46... Re3 {[%clk 0:00:35.2]} 47.
a4 {[%clk 0:00:17.9]} 47... Re4+ {[%clk 0:00:35.1]} 48. Kc3 {[%clk 0:00:18.4]}
48... Re3+ {[%clk 0:00:27.9]} 49. Kd4 {[%clk 0:00:18.9]} 49... Re1 {[%clk
0:00:27.7]} 50. Kc3 {[%clk 0:00:18.8]} 50... Re3+ {[%clk 0:00:27.7]} 51. Kd2
{[%clk 0:00:19.2]} 51... Ra3 {[%clk 0:00:25.1]} 52. c6 {[%clk 0:00:19.6]} 52...
bxc6 {[%clk 0:00:25.1]} 53. Qxc6 {[%clk 0:00:20.5]} 53... Ra2+ {[%clk
0:00:25.2]} 54. Kc3 {[%clk 0:00:20.2]} 54... Rxh2 {[%clk 0:00:25.2]} 55. Qxa6
{[%clk 0:00:20.4]} 55... Rh3+ {[%clk 0:00:25.2]} 56. Kd4 {[%clk 0:00:20.3]}
56... Rg3 {[%clk 0:00:22.4]} 57. Qh6 {[%clk 0:00:20.5]} 57... Rg4+ {[%clk
0:00:20.5]} 58. Kc3 {[%clk 0:00:19.7]} 58... Rg3+ {[%clk 0:00:19.7]} 59. Kc4
{[%clk 0:00:19.6]} 59... Rg4+ {[%clk 0:00:20.4]} 60. Kb5 {[%clk 0:00:20.1]}
60... Kc7 {[%clk 0:00:17]} 61. a5 {[%clk 0:00:20.5]} 61... Nb8 {[%clk
0:00:12.6]} 62. Qb6+ {[%clk 0:00:18.7]} 62... Kc8 {[%clk 0:00:10.2]} 63. Qe6+
{[%clk 0:00:18.8]} 1-0

[Event "*** SCC Grand Prix: Titled Tuesday Blitz"]
[Site "Chess.com"]
[Date "2020.08.04"]
[Round "6"]
[White "kuban1991"]
[Black "1stSecond"]
[Result "1-0"]
[WhiteElo "2775"]
[BlackElo "2845"]
[TimeControl "180+1"]
[EndTime "14:51:44 PDT"]
[Termination "kuban1991 won by resignation"]

1. Nf3 {[%clk 0:03:00.3]} 1... d5 {[%clk 0:02:58]} 2. g3 {[%clk 0:03:00.3]} 2...
Nc6 {[%clk 0:02:54]} 3. d4 {[%clk 0:02:59.8]} 3... Bf5 {[%clk 0:02:54.1]} 4. Bg2
{[%clk 0:02:59.4]} 4... Nb4 {[%clk 0:02:53.5]} 5. Na3 {[%clk 0:02:58.2]} 5... e6
{[%clk 0:02:53.5]} 6. c3 {[%clk 0:02:56.9]} 6... Nc6 {[%clk 0:02:51.1]} 7. Qb3
{[%clk 0:02:57.4]} 7... Bxa3 {[%clk 0:02:50]} 8. Qxa3 {[%clk 0:02:56.6]} 8...
Be4 {[%clk 0:02:49.6]} 9. O-O {[%clk 0:02:52.9]} 9... Nge7 {[%clk 0:02:47]} 10.
Re1 {[%clk 0:02:47.3]} 10... O-O {[%clk 0:02:45.2]} 11. Bf1 {[%clk 0:02:47.2]}
11... Bxf3 {[%clk 0:02:21.5]} 12. exf3 {[%clk 0:02:48.1]} 12... a6 {[%clk
0:02:21.4]} 13. Qb3 {[%clk 0:02:40.3]} 13... b5 {[%clk 0:02:17.8]} 14. a4 {[%clk
0:02:29.7]} 14... Na5 {[%clk 0:02:13]} 15. Qc2 {[%clk 0:02:15.3]} 15... c6
{[%clk 0:02:06.2]} 16. Bd3 {[%clk 0:02:14.3]} 16... h6 {[%clk 0:02:01.5]} 17. b3
{[%clk 0:02:12.3]} 17... Qd7 {[%clk 0:01:56.7]} 18. axb5 {[%clk 0:02:00.3]}
18... axb5 {[%clk 0:01:54.2]} 19. Ba3 {[%clk 0:02:00.2]} 19... Rfc8 {[%clk
0:01:48.9]} 20. Ra2 {[%clk 0:01:55.2]} 20... Nb7 {[%clk 0:01:44.1]} 21. Rea1
{[%clk 0:01:54.8]} 21... Nf5 {[%clk 0:01:42.4]} 22. Bb4 {[%clk 0:01:35.4]} 22...
Rxa2 {[%clk 0:01:40.9]} 23. Rxa2 {[%clk 0:01:35.3]} 23... Nfd6 {[%clk
0:01:30.8]} 24. Ra7 {[%clk 0:01:33.1]} 24... Qe8 {[%clk 0:01:24.6]} 25. Qa2
{[%clk 0:01:26.7]} 25... e5 {[%clk 0:01:22.6]} 26. dxe5 {[%clk 0:01:13.1]} 26...
Qxe5 {[%clk 0:01:23.5]} 27. Ra8 {[%clk 0:00:45.3]} 27... Qe8 {[%clk 0:01:04.7]}
28. Rxc8 {[%clk 0:00:44.3]} 28... Qxc8 {[%clk 0:01:05.6]} 29. Qa6 {[%clk
0:00:42.9]} 29... g6 {[%clk 0:00:55]} 30. h4 {[%clk 0:00:35.7]} 30... h5 {[%clk
0:00:53.7]} 31. Qb6 {[%clk 0:00:33.2]} 31... Qd7 {[%clk 0:00:48.9]} 32. Qa7
{[%clk 0:00:29]} 32... Qc7 {[%clk 0:00:44.1]} 33. Bxd6 {[%clk 0:00:28.4]} 33...
Qxd6 {[%clk 0:00:41]} 34. Qxb7 {[%clk 0:00:28]} 34... Qc5 {[%clk 0:00:37.7]} 35.
Qb8+ {[%clk 0:00:27.7]} 35... Kh7 {[%clk 0:00:37.6]} 36. Qe5 {[%clk 0:00:28.2]}
36... b4 {[%clk 0:00:36.6]} 37. c4 {[%clk 0:00:19.3]} 37... Kg8 {[%clk
0:00:32.9]} 38. cxd5 {[%clk 0:00:17.7]} 38... cxd5 {[%clk 0:00:33.8]} 39. Bc4
{[%clk 0:00:16.1]} 39... Qa5 {[%clk 0:00:28.5]} 40. Qxd5 {[%clk 0:00:15.9]}
40... Qa1+ {[%clk 0:00:29]} 41. Kg2 {[%clk 0:00:16.1]} 41... Qf6 {[%clk
0:00:29.9]} 42. Qb7 {[%clk 0:00:15.1]} 42... Kg7 {[%clk 0:00:30.3]} 43. Qxb4
{[%clk 0:00:14.9]} 43... g5 {[%clk 0:00:30.7]} 44. hxg5 {[%clk 0:00:14]} 44...
Qxg5 {[%clk 0:00:31.6]} 45. Qb7 {[%clk 0:00:14.3]} 45... h4 {[%clk 0:00:30.3]}
46. Qxf7+ {[%clk 0:00:15.2]} 46... Kh6 {[%clk 0:00:30.6]} 47. Qf4 {[%clk
0:00:14.4]} 47... h3+ {[%clk 0:00:27.7]} 48. Kxh3 {[%clk 0:00:12.3]} 48... Kh7
{[%clk 0:00:22.7]} 49. Qh4+ {[%clk 0:00:09.9]} 49... Kg7 {[%clk 0:00:17.6]} 50.
Qxg5+ {[%clk 0:00:08.5]} 50... Kf8 {[%clk 0:00:18.5]} 51. Qe3 {[%clk 0:00:08.4]}
51... Kg7 {[%clk 0:00:17.9]} 52. b4 {[%clk 0:00:08.5]} 52... Kg6 {[%clk
0:00:17.3]} 53. b5 {[%clk 0:00:08.6]} 53... Kh5 {[%clk 0:00:17.8]} 54. b6 {[%clk
0:00:08.1]} 1-0

[Event "*** SCC Grand Prix: Titled Tuesday Blitz"]
[Site "Chess.com"]
[Date "2020.08.04"]
[Round "6"]
[White "Iskusnyh"]
[Black "MVM2008"]
[Result "1-0"]
[WhiteElo "2574"]
[BlackElo "2240"]
[TimeControl "180+1"]
[EndTime "14:51:45 PDT"]
[Termination "Iskusnyh won by resignation"]

1. d4 {[%clk 0:03:00.9]} 1... Nf6 {[%clk 0:02:59.4]} 2. c4 {[%clk 0:03:01]} 2...
g6 {[%clk 0:02:57.9]} 3. g3 {[%clk 0:03:01]} 3... c5 {[%clk 0:02:58.1]} 4. dxc5
{[%clk 0:02:57.8]} 4... Bg7 {[%clk 0:02:55]} 5. Bg2 {[%clk 0:02:57]} 5... O-O
{[%clk 0:02:50.2]} 6. Nc3 {[%clk 0:02:54.8]} 6... Qa5 {[%clk 0:02:44.4]} 7. Qa4
{[%clk 0:02:33.8]} 7... Qxc5 {[%clk 0:02:25]} 8. Nf3 {[%clk 0:02:14.2]} 8... a6
{[%clk 0:02:18.2]} 9. O-O {[%clk 0:02:13.3]} 9... Qc7 {[%clk 0:02:14]} 10. Bf4
{[%clk 0:02:10.8]} 10... d6 {[%clk 0:02:05.9]} 11. Rac1 {[%clk 0:02:03.4]} 11...
Nbd7 {[%clk 0:01:47.6]} 12. b4 {[%clk 0:01:47.8]} 12... Qxc4 {[%clk 0:01:25.3]}
13. Rfd1 {[%clk 0:01:41.2]} 13... Qc7 {[%clk 0:01:11.4]} 14. Be3 {[%clk
0:00:59.5]} 14... Qd8 {[%clk 0:00:39.8]} 15. b5 {[%clk 0:00:55.5]} 15... Nb6
{[%clk 0:00:34.1]} 16. Qb4 {[%clk 0:00:35.6]} 16... axb5 {[%clk 0:00:23]} 17.
Qxb5 {[%clk 0:00:35.4]} 17... Nbd7 {[%clk 0:00:20.6]} 18. a4 {[%clk 0:00:34.7]}
18... Qa5 {[%clk 0:00:18.6]} 19. Bd4 {[%clk 0:00:31]} 19... Qxb5 {[%clk
0:00:17.4]} 20. axb5 {[%clk 0:00:31.4]} 20... Nc5 {[%clk 0:00:09.8]} 21. Nd2
{[%clk 0:00:30.7]} 21... Rb8 {[%clk 0:00:08.5]} 22. Nc4 {[%clk 0:00:27.9]} 22...
b6 {[%clk 0:00:08.3]} 23. Nd5 {[%clk 0:00:22.2]} 23... Nxd5 {[%clk 0:00:07.2]}
24. Bxd5 {[%clk 0:00:22.1]} 24... e6 {[%clk 0:00:06.5]} 25. Bxg7 {[%clk
0:00:20.7]} 25... Kxg7 {[%clk 0:00:07.4]} 26. Bc6 {[%clk 0:00:20.5]} 26... d5
{[%clk 0:00:07.2]} 27. Ne5 {[%clk 0:00:20.8]} 27... Rd8 {[%clk 0:00:06.7]} 28.
Ra1 {[%clk 0:00:20.6]} 28... Bb7 {[%clk 0:00:06.3]} 29. Ra7 {[%clk 0:00:20.3]}
29... Bxc6 {[%clk 0:00:06.4]} 30. Re7 {[%clk 0:00:19.9]} 30... Be8 {[%clk
0:00:05.5]} 31. Ra1 {[%clk 0:00:19.3]} 31... d4 {[%clk 0:00:04.7]} 32. Raa7
{[%clk 0:00:19.2]} 32... Nb7 {[%clk 0:00:05]} 33. Raxb7 {[%clk 0:00:18.1]} 33...
Rxb7 {[%clk 0:00:05]} 34. Rxb7 {[%clk 0:00:18.5]} 34... Bxb5 {[%clk 0:00:05.1]}
35. Nxf7 {[%clk 0:00:18.1]} 35... Rd7 {[%clk 0:00:03.6]} 36. Rxb6 {[%clk
0:00:16.8]} 36... Rxf7 {[%clk 0:00:03.2]} 37. Rxb5 {[%clk 0:00:17.4]} 37... Rd7
{[%clk 0:00:04.1]} 38. Rb6 {[%clk 0:00:16.8]} 38... Kf7 {[%clk 0:00:04.1]} 39.
Kg2 {[%clk 0:00:17.4]} 39... d3 {[%clk 0:00:04.5]} 40. exd3 {[%clk 0:00:17.7]}
40... Rxd3 {[%clk 0:00:05.4]} 41. Rb7+ {[%clk 0:00:18.2]} 41... Kg8 {[%clk
0:00:05.7]} 42. Re7 {[%clk 0:00:18.7]} 42... Rd6 {[%clk 0:00:05.9]} 43. h4
{[%clk 0:00:18.7]} 43... Rc6 {[%clk 0:00:04.5]} 44. Kf3 {[%clk 0:00:18.6]} 44...
Rd6 {[%clk 0:00:03.4]} 45. Kf4 {[%clk 0:00:18.7]} 45... h6 {[%clk 0:00:03.1]}
46. Ke5 {[%clk 0:00:17.7]} 46... Rd2 {[%clk 0:00:02.6]} 47. Kf6 {[%clk 0:00:17]}
47... Rxf2+ {[%clk 0:00:02.3]} 48. Kxg6 {[%clk 0:00:17.2]} 48... Kf8 {[%clk
0:00:02.1]} 49. Rxe6 {[%clk 0:00:17.3]} 49... Rg2 {[%clk 0:00:01.8]} 50. Re3
{[%clk 0:00:17]} 50... Ra2 {[%clk 0:00:01.1]} 51. Kxh6 {[%clk 0:00:17]} 51...
Ra6+ {[%clk 0:00:01.4]} 52. Kh5 {[%clk 0:00:17.2]} 52... Kg7 {[%clk 0:00:01.5]}
53. g4 {[%clk 0:00:17.1]} 53... Rh6+ {[%clk 0:00:01.2]} 54. Kg5 {[%clk
0:00:16.9]} 54... Rg6+ {[%clk 0:00:02.1]} 55. Kf4 {[%clk 0:00:17.1]} 55... Rf6+
{[%clk 0:00:03]} 56. Kg3 {[%clk 0:00:17.6]} 56... Kg6 {[%clk 0:00:03.5]} 57. h5+
{[%clk 0:00:17.4]} 57... Kg5 {[%clk 0:00:03.6]} 58. Re5+ {[%clk 0:00:17.6]}
58... Kh6 {[%clk 0:00:04.1]} 59. g5+ {[%clk 0:00:18]} 1-0